fUSD/lending_fUSD_20241108
["ID","MTS","AMOUNT","RATE_DAILY","PERIOD"]
[341609240,1731027040727,-595.00439662,0.00027397,2]
[341609241,1731027040736,-500.0,0.00027397,2]
[341609242,1731027040745,-500.0,0.00027397,2]
[341609243,1731027040755,-67.53700941,0.00027397,2]
[341609244,1731027040767,-653.72299059,0.00027397,2]
[341609245,1731027040776,-500.0,0.00027397,2]
[341609246,1731027040785,-98.78153958,0.00027397,2]
[341609247,1731027040796,-401.21846042,0.00027397,2]
[341609248,1731027040808,-506.98,0.00027397,2]
[341609249,1731027040818,-500.0,0.00027397,2]
[341609250,1731027040827,-500.0,0.00027397,2]
[341609251,1731027040836,-500.0,0.00027397,2]
[341609252,1731027040845,-500.0,0.00027397,2]
[341609253,1731027040854,-500.0,0.00027397,2]
[341609254,1731027040863,-500.0,0.00027397,2]
[341609255,1731027040872,-500.0,0.00027397,2]
[341609256,1731027040881,-500.0,0.00027397,2]
[341609257,1731027040890,-500.0,0.00027397,2]
[341609258,1731027040899,-379.23778567,0.00027397,2]
[341609259,1731027041140,-500.0,0.00027397,2]
[341609260,1731027041152,-580.47,0.00027397,2]
[341609261,1731027041163,-500.0,0.00027397,2]
[341609262,1731027041173,-500.0,0.00027397,2]
[341609263,1731027041183,-500.0,0.00027397,2]
[341609264,1731027041193,-500.0,0.00027397,2]
[341609265,1731027041203,-209.64241543,0.00027397,2]
[341609266,1731027041216,-290.35758457,0.00027397,2]
[341609267,1731027041226,-500.0,0.00027397,2]
[341609268,1731027041236,-602.11,0.00027397,2]
[341609269,1731027041245,-251.46777448,0.00027397,2]
[341609270,1731027041256,-630.20566939,0.00027397,2]
[341609271,1731027041265,-500.0,0.00027397,2]
[341609272,1731027041274,-500.0,0.00027397,2]
[341609273,1731027041284,-572.41,0.00027397,2]
[341609274,1731027041294,-500.0,0.00027397,2]
[341609275,1731027041304,-500.0,0.00027397,2]
[341609276,1731027041313,-500.0,0.00027397,2]
[341609277,1731027041322,-565.66,0.00027397,2]
[341609278,1731027041331,-500.0,0.00027397,2]
[341609279,1731027041341,-500.0,0.00027397,2]
[341609280,1731027041350,-153.008708,0.00027397,2]
[341609281,1731027041359,-500.0,0.00027397,2]
[341609282,1731027041368,-500.0,0.00027397,2]
[341609283,1731027041378,-177.415876,0.00027397,2]
[341609284,1731027041386,-500.0,0.00027397,2]
[341609285,1731027041396,-201.20462245,0.00027397,2]
[341609286,1731027041425,-276.43705104,0.00027397,2]
[341609293,1731027043295,-205.21832651,0.00027397,2]
[341609294,1731027043306,-500.0,0.00027397,2]
[341609295,1731027043316,-500.0,0.00027397,2]
[341609296,1731027043326,-572.64,0.00027397,2]
[341609297,1731027043335,-500.0,0.00027397,2]
[341609298,1731027043345,-500.0,0.00027397,2]
[341609299,1731027043354,-500.0,0.00027397,2]
[341609300,1731027043363,-500.0,0.00027397,2]
[341609301,1731027043372,-500.0,0.00027397,2]
[341609302,1731027043381,-500.0,0.00027397,2]
[341609303,1731027043391,-500.0,0.00027397,2]
[341609304,1731027043401,-500.0,0.00027397,2]
[341609305,1731027043410,-692.59,0.00027397,2]
[341609306,1731027043419,-507.06370902,0.00027397,2]
[341609307,1731027043429,-505.58,0.00027397,2]
[341609308,1731027043438,-133.90796447,0.00027397,2]
[341609309,1731027043545,-310.21465716,0.00027397,2]
[341609310,1731027043557,-580.83,0.00027397,2]
[341609311,1731027043571,-658.34,0.00027397,2]
[341609313,1731027043580,-532.96,0.00027397,2]
[341609315,1731027043590,-500.0,0.00027397,2]
[341609317,1731027043599,-500.0,0.00027397,2]
[341609319,1731027043609,-264.50875948,0.00027397,2]
[341609352,1731027046001,-250.0,0.00026587,2]
[341609353,1731027046011,-500.0,0.00027373,2]
[341609354,1731027046021,-271.59124052,0.00027397,2]
[341609355,1731027046031,-618.99,0.00027397,2]
[341609356,1731027046042,-504.3005468,0.00027397,2]
[341609357,1731027046053,-500.0,0.00027397,2]
[341609358,1731027046066,-532.29,0.00027397,2]
[341609359,1731027046077,-500.0,0.00027397,2]
[341609360,1731027046087,-500.0,0.00027397,2]
[341609361,1731027046097,-582.73,0.00027397,2]
[341609362,1731027046107,-1304.76,0.00027397,2]
[341609363,1731027046117,-500.0,0.00027397,2]
[341609364,1731027046126,-500.0,0.00027397,2]
[341609365,1731027046136,-2435.82,0.00027397,2]
[341609366,1731027046147,-500.0,0.00027397,2]
[341609367,1731027046156,-500.0,0.00027397,2]
[341609368,1731027046166,-500.0,0.00027397,2]
[341609369,1731027046176,-632.05,0.00027397,2]
[341609370,1731027046186,-500.0,0.00027397,2]
[341609371,1731027046196,-500.0,0.00027397,2]
[341609372,1731027046205,-522.36,0.00027397,2]
[341609373,1731027046214,-534.24,0.00027397,2]
[341609374,1731027046224,-661.88,0.00027397,2]
[341609375,1731027046234,-500.0,0.00027397,2]
[341609376,1731027046243,-500.0,0.00027397,2]
[341609377,1731027046253,-500.0,0.00027397,2]
[341609378,1731027046263,-501.0,0.00027397,2]
[341609379,1731027046272,-500.0,0.00027397,2]
[341609380,1731027046282,-500.0,0.00027397,2]
[341609381,1731027046291,-596.82,0.00027397,2]
[341609382,1731027046301,-500.0,0.00027397,2]
[341609383,1731027046313,-573.46,0.00027397,2]
[341609384,1731027046323,-698.88,0.00027397,2]
[341609385,1731027046332,-503.92,0.00027397,2]
[341609386,1731027046342,-617.76847182,0.00027397,2]
[341609387,1731027046352,-624.79,0.00027397,2]
[341609388,1731027046362,-500.0,0.00027397,2]
[341609389,1731027046371,-1273.85,0.00027397,2]
[341609390,1731027046381,-500.0,0.00027397,2]
[341609391,1731027046390,-500.0,0.00027397,2]
[341609393,1731027046399,-500.0,0.00027397,2]
[341609395,1731027046409,-500.0,0.00027397,2]
[341609397,1731027046418,-500.0,0.00027397,2]
[341609399,1731027046429,-1531.51,0.00027397,2]
[341609401,1731027046438,-500.0,0.00027397,2]
[341609403,1731027046448,-500.0,0.00027397,2]
[341609405,1731027046457,-500.0,0.00027397,2]
[341609407,1731027046467,-546.07,0.00027397,2]
[341609409,1731027046477,-969.54,0.00027397,2]
[341609411,1731027046487,-500.0,0.00027397,2]
[341609413,1731027046497,-1027.51,0.00027397,2]
[341609415,1731027046507,-422.80023358,0.00027397,2]
[341609417,1731027046516,-629.65,0.00027397,2]
[341609419,1731027046527,-500.0,0.00027397,2]
[341609421,1731027046536,-516.69721779,0.00027397,2]
[341609423,1731027046546,-500.0,0.00027397,2]
[341609425,1731027046556,-500.0,0.00027397,2]
[341609427,1731027046567,-500.0,0.00027397,2]
[341609428,1731027046577,-500.0,0.00027397,2]
[341609429,1731027046587,-500.0,0.00027397,2]
[341609430,1731027046597,-500.0,0.00027397,2]
[341609431,1731027046607,-500.0,0.00027397,2]
[341609432,1731027046617,-500.0,0.00027397,2]
[341609433,1731027046627,-626.99,0.00027397,2]
[341609434,1731027046637,-500.0,0.00027397,2]
[341609435,1731027046647,-500.0,0.00027397,2]
[341609436,1731027046658,-500.0,0.00027397,2]
[341609437,1731027046668,-500.0,0.00027397,2]
[341609438,1731027046678,-864.02,0.00027397,2]
[341609439,1731027046688,-1148.27,0.00027397,2]
[341609440,1731027046698,-500.0,0.00027397,2]
[341609441,1731027046710,-687.45,0.00027397,2]
[341609442,1731027046720,-500.0,0.00027397,2]
[341609443,1731027046730,-331.61689231,0.00027397,2]
[341609444,1731027046739,-747.19,0.00027397,2]
[341609445,1731027046750,-500.0,0.00027397,2]
[341609446,1731027046760,-500.0,0.00027397,2]
[341609447,1731027046769,-589.35,0.00027397,2]
[341609448,1731027046779,-500.0,0.00027397,2]
[341609449,1731027046788,-595.87,0.00027397,2]
[341609450,1731027046798,-500.0,0.00027397,2]
[341609451,1731027046808,-500.0,0.00027397,2]
[341609452,1731027046824,-500.0,0.00027397,2]
[341609453,1731027046835,-500.0,0.00027397,2]
[341609454,1731027046844,-500.0,0.00027397,2]
[341609455,1731027046853,-500.0,0.00027397,2]
[341609456,1731027046862,-1056.18,0.00027397,2]
[341609457,1731027046871,-566.33,0.00027397,2]
[341609458,1731027046881,-500.0,0.00027397,2]
[341609459,1731027046890,-500.0,0.00027397,2]
[341609460,1731027046899,-500.0,0.00027397,2]
[341609461,1731027046909,-241.01504392,0.00027397,2]
[341609462,1731027046918,-500.0,0.00027397,2]
[341609463,1731027046926,-500.0,0.00027397,2]
[341609464,1731027046936,-500.0,0.00027397,2]
[341609465,1731027046945,-850.56,0.00027397,2]
[341609466,1731027046956,-500.0,0.00027397,2]
[341609467,1731027046965,-251.97,0.00027397,2]
[341609468,1731027046974,-713.51,0.00027397,2]
[341609469,1731027046983,-568.86,0.00027397,2]
[341609470,1731027046992,-500.0,0.00027397,2]
[341609471,1731027047002,-500.0,0.00027397,2]
[341609472,1731027047011,-920.41,0.00027397,2]
[341609473,1731027047020,-631.57,0.00027397,2]
[341609474,1731027047029,-500.0,0.00027397,2]
[341609475,1731027047039,-500.0,0.00027397,2]
[341609476,1731027047048,-500.0,0.00027397,2]
[341609477,1731027047057,-500.0,0.00027397,2]
[341609478,1731027047065,-500.0,0.00027397,2]
[341609479,1731027047075,-704.59,0.00027397,2]
[341609480,1731027047085,-500.0,0.00027397,2]
[341609481,1731027047094,-500.58790638,0.00027397,2]
[341609482,1731027047103,-500.0,0.00027397,2]
[341609483,1731027047112,-613.38,0.00027397,2]
[341609484,1731027047121,-500.0,0.00027397,2]
[341609485,1731027047130,-500.0,0.00027397,2]
[341609486,1731027047139,-500.0,0.00027397,2]
[341609487,1731027047149,-500.0,0.00027397,2]
[341609488,1731027047158,-500.0,0.00027397,2]
[341609489,1731027047167,-500.0,0.00027397,2]
[341609490,1731027047176,-500.0,0.00027397,2]
[341609491,1731027047185,-500.0,0.00027397,2]
[341609492,1731027047194,-568.84,0.00027397,2]
[341609493,1731027047204,-620.65,0.00027397,2]
[341609494,1731027047213,-351.5,0.00027397,2]
[341609495,1731027047222,-607.68144768,0.00027397,2]
[341609496,1731027047231,-624.69,0.00027397,2]
[341609497,1731027047240,-735.11,0.00027397,2]
[341609498,1731027047249,-500.0,0.00027397,2]
[341609499,1731027047258,-500.0,0.00027397,2]
[341609500,1731027047267,-500.0,0.00027397,2]
[341609501,1731027047276,-579.09,0.00027397,2]
[341609502,1731027047286,-547.88,0.00027397,2]
[341609503,1731027047295,-500.0,0.00027397,2]
[341609504,1731027047304,-500.0,0.00027397,2]
[341609505,1731027047321,-500.0,0.00027397,2]
[341609506,1731027047330,-500.0,0.00027397,2]
[341609507,1731027047339,-722.2,0.00027397,2]
[341609508,1731027047351,-500.0,0.00027397,2]
[341609509,1731027047360,-500.0,0.00027397,2]
[341609510,1731027047369,-500.0,0.00027397,2]
[341609511,1731027047378,-500.0,0.00027397,2]
[341609512,1731027047387,-500.0,0.00027397,2]
[341609513,1731027047397,-500.0,0.00027397,2]
[341609514,1731027047406,-542.09,0.00027397,2]
[341609515,1731027047415,-681.91,0.00027397,2]
[341609516,1731027047425,-922.65,0.00027397,2]
[341609517,1731027047434,-500.0,0.00027397,2]
[341609518,1731027047443,-1194.86,0.00027397,2]
[341609519,1731027047452,-526.42,0.00027397,2]
[341609520,1731027047463,-500.0,0.00027397,2]
[341609521,1731027047472,-500.0,0.00027397,2]
[341609522,1731027047483,-500.0,0.00027397,2]
[341609523,1731027047493,-500.0,0.00027397,2]
[341609524,1731027047503,-500.0,0.00027397,2]
[341609525,1731027047512,-500.0,0.00027397,2]
[341609526,1731027047521,-500.0,0.00027397,2]
[341609527,1731027047530,-500.0,0.00027397,2]
[341609528,1731027047539,-500.28,0.00027397,2]
[341609529,1731027047549,-589.79,0.00027397,2]
[341609530,1731027047559,-1091.69,0.00027397,2]
[341609531,1731027047569,-522.82,0.00027397,2]
[341609532,1731027047578,-267.44014988,0.00027397,2]
[341609533,1731027047587,-500.0,0.00027397,2]
[341609534,1731027047596,-1021.63,0.00027397,2]
[341609535,1731027047606,-981.27,0.00027397,2]
[341609536,1731027047615,-500.0,0.00027397,2]
[341609537,1731027047624,-500.0,0.00027397,2]
[341609538,1731027047633,-500.0,0.00027397,2]
[341609539,1731027047642,-520.24,0.00027397,2]
[341609540,1731027047651,-158.70729093,0.00027397,2]
[341609541,1731027047664,-784.62,0.00027397,2]
[341609542,1731027047673,-209.46,0.00027397,2]
[341609543,1731027047683,-500.0,0.00027397,2]
[341609544,1731027047692,-500.0,0.00027397,2]
[341609545,1731027047702,-500.0,0.00027397,2]
[341609546,1731027047711,-500.0,0.00027397,2]
[341609547,1731027047721,-500.0,0.00027397,2]
[341609548,1731027047732,-500.0,0.00027397,2]
[341609549,1731027047741,-754.42,0.00027397,2]
[341609550,1731027047750,-500.0,0.00027397,2]
[341609551,1731027047759,-500.0,0.00027397,2]
[341609552,1731027047768,-500.0,0.00027397,2]
[341609553,1731027047778,-500.0,0.00027397,2]
[341609554,1731027047787,-500.0,0.00027397,2]
[341609555,1731027047796,-312.54183135,0.00027397,2]
[341609556,1731027047805,-500.0,0.00027397,2]
[341609557,1731027047816,-500.0,0.00027397,2]
[341609558,1731027047825,-500.0,0.00027397,2]
[341609559,1731027047834,-633.45264298,0.00027397,2]
[341609560,1731027047843,-500.0,0.00027397,2]
[341609561,1731027047852,-358.3,0.00027397,2]
[341609562,1731027047861,-500.0,0.00027397,2]
[341609563,1731027047870,-500.0,0.00027397,2]
[341609564,1731027047879,-500.0,0.00027397,2]
[341609565,1731027047888,-500.0,0.00027397,2]
[341609566,1731027047898,-559.84,0.00027397,2]
[341609567,1731027047907,-500.0,0.00027397,2]
[341609568,1731027047917,-700.82,0.00027397,2]
[341609569,1731027047926,-500.0,0.00027397,2]
[341609570,1731027047937,-504.44586121,0.00027397,2]
[341609571,1731027047948,-500.0,0.00027397,2]
[341609572,1731027047957,-556.38,0.00027397,2]
[341609573,1731027047967,-500.0,0.00027397,2]
[341609574,1731027047976,-534.6,0.00027397,2]
[341609575,1731027047984,-641.95,0.00027397,2]
[341609576,1731027047993,-578.33,0.00027397,2]
[341609577,1731027048222,-525.53,0.00027397,2]
[341609578,1731027048234,-500.0,0.00027397,2]
[341609579,1731027048243,-848.76,0.00027397,2]
[341609580,1731027048252,-500.0,0.00027397,2]
[341609581,1731027048261,-500.0,0.00027397,2]
[341609582,1731027048270,-919.19,0.00027397,2]
[341609583,1731027048279,-500.0,0.00027397,2]
[341609584,1731027048288,-500.0,0.00027397,2]
[341609585,1731027048297,-851.64,0.00027397,2]
[341609586,1731027048306,-500.0,0.00027397,2]
[341609587,1731027048317,-500.0,0.00027397,2]
[341609588,1731027048326,-500.0,0.00027397,2]
[341609589,1731027048335,-500.0,0.00027397,2]
[341609590,1731027048344,-500.0,0.00027397,2]
[341609591,1731027048354,-500.0,0.00027397,2]
[341609592,1731027048363,-500.0,0.00027397,2]
[341609593,1731027048372,-500.0,0.00027397,2]
[341609594,1731027048381,-927.6,0.00027397,2]
[341609595,1731027048391,-512.94,0.00027397,2]
[341609596,1731027048400,-500.0,0.00027397,2]
[341609597,1731027048410,-500.0,0.00027397,2]
[341609598,1731027048419,-500.0,0.00027397,2]
[341609599,1731027048429,-500.0,0.00027397,2]
[341609600,1731027048438,-1063.12,0.00027397,2]
[341609601,1731027048447,-587.86,0.00027397,2]
[341609602,1731027048457,-500.0,0.00027397,2]
[341609603,1731027048466,-553.52,0.00027397,2]
[341609604,1731027048476,-500.0,0.00027397,2]
[341609605,1731027048485,-609.78,0.00027397,2]
[341609606,1731027048494,-500.0,0.00027397,2]
[341609607,1731027048508,-500.0,0.00027397,2]
[341609608,1731027048518,-577.52,0.00027397,2]
[341609609,1731027048527,-569.03133762,0.00027397,2]
[341609610,1731027048536,-591.88,0.00027397,2]
[341609611,1731027048546,-500.0,0.00027397,2]
[341609612,1731027048556,-500.0,0.00027397,2]
[341609613,1731027048568,-11765.0,0.00027397,2]
[341609614,1731027048577,-500.0,0.00027397,2]
[341609615,1731027048587,-500.0,0.00027397,2]
[341609616,1731027048597,-598.55,0.00027397,2]
[341609617,1731027048606,-500.0,0.00027397,2]
[341609618,1731027048616,-1349.75,0.00027397,2]
[341609619,1731027048625,-1322.09,0.00027397,2]
[341609620,1731027048635,-826.83,0.00027397,2]
[341609621,1731027048644,-530.97,0.00027397,2]
[341609622,1731027048656,-500.0,0.00027397,2]
[341609623,1731027048667,-606.77,0.00027397,2]
[341609624,1731027048677,-739.37,0.00027397,2]
[341609625,1731027048686,-500.0,0.00027397,2]
[341609626,1731027048695,-547.35,0.00027397,2]
[341609627,1731027048706,-500.0,0.00027397,2]
[341609628,1731027048715,-512.75,0.00027397,2]
[341609629,1731027048725,-959.56,0.00027397,2]
[341609630,1731027048736,-500.0,0.00027397,2]
[341609631,1731027048746,-1165.56,0.00027397,2]
[341609632,1731027048755,-947.86,0.00027397,2]
[341609633,1731027048765,-580.3,0.00027397,2]
[341609634,1731027048774,-2373.05,0.00027397,2]
[341609635,1731027048784,-500.0,0.00027397,2]
[341609636,1731027048793,-500.0,0.00027397,2]
[341609637,1731027048803,-500.0,0.00027397,2]
[341609638,1731027048813,-500.0,0.00027397,2]
[341609639,1731027048822,-500.0,0.00027397,2]
[341609640,1731027048832,-615.62,0.00027397,2]
[341609641,1731027048841,-500.0,0.00027397,2]
[341609642,1731027048851,-1984.47,0.00027397,2]
[341609643,1731027048861,-1644.12,0.00027397,2]
[341609644,1731027048870,-212.56453435,0.00027397,2]
[341609645,1731027048879,-500.0,0.00027397,2]
[341609646,1731027048889,-562.17,0.00027397,2]
[341609647,1731027048898,-500.0,0.00027397,2]
[341609648,1731027048908,-977.84,0.00027397,2]
[341609649,1731027048917,-500.0,0.00027397,2]
[341609650,1731027048926,-500.0,0.00027397,2]
[341609651,1731027048936,-500.0,0.00027397,2]
[341609652,1731027048945,-500.0,0.00027397,2]
[341609653,1731027048955,-500.0,0.00027397,2]
[341609654,1731027048964,-500.0,0.00027397,2]
[341609655,1731027048974,-1361.31,0.00027397,2]
[341609656,1731027048983,-2079.74,0.00027397,2]
[341609657,1731027048992,-1016.4,0.00027397,2]
[341609658,1731027049001,-595.2,0.00027397,2]
[341609659,1731027049010,-1331.16,0.00027397,2]
[341609660,1731027049020,-500.0,0.00027397,2]
[341609661,1731027049029,-500.0,0.00027397,2]
[341609662,1731027049038,-500.0,0.00027397,2]
[341609663,1731027049048,-4101.57,0.00027397,2]
[341609664,1731027049057,-500.0,0.00027397,2]
[341609665,1731027049068,-500.0,0.00027397,2]
[341609666,1731027049078,-500.0,0.00027397,2]
[341609667,1731027049088,-500.0,0.00027397,2]
[341609668,1731027049099,-500.0,0.00027397,2]
[341609669,1731027049108,-500.0,0.00027397,2]
[341609670,1731027049117,-500.0,0.00027397,2]
[341609671,1731027049127,-1317.3,0.00027397,2]
[341609672,1731027049136,-500.0,0.00027397,2]
[341609673,1731027049145,-500.0,0.00027397,2]
[341609674,1731027049155,-641.39,0.00027397,2]
[341609675,1731027049164,-500.0,0.00027397,2]
[341609676,1731027049174,-951.83,0.00027397,2]
[341609677,1731027049184,-505.69,0.00027397,2]
[341609678,1731027049195,-500.0,0.00027397,2]
[341609679,1731027049206,-650.73,0.00027397,2]
[341609680,1731027049215,-500.0,0.00027397,2]
[341609681,1731027049225,-500.0,0.00027397,2]
[341609682,1731027049234,-471.65108839,0.00027397,2]
[341609683,1731027049243,-500.0,0.00027397,2]
[341609684,1731027049253,-500.0,0.00027397,2]
[341609685,1731027049262,-500.0,0.00027397,2]
[341609686,1731027049272,-642.69,0.00027397,2]
[341609687,1731027049281,-699.69,0.00027397,2]
[341609688,1731027049289,-500.0,0.00027397,2]
[341609689,1731027049298,-2508.25,0.00027397,2]
[341609690,1731027049307,-500.0,0.00027397,2]
[341609691,1731027049318,-640.32,0.00027397,2]
[341609692,1731027049327,-500.0,0.00027397,2]
[341609693,1731027049337,-500.0,0.00027397,2]
[341609694,1731027049346,-500.0,0.00027397,2]
[341609695,1731027049356,-500.29,0.00027397,2]
[341609696,1731027049365,-500.0,0.00027397,2]
[341609697,1731027049374,-503.16524119,0.00027397,2]
[341609698,1731027049384,-776.89,0.00027397,2]
[341609699,1731027049393,-500.0,0.00027397,2]
[341609700,1731027049402,-500.0,0.00027397,2]
[341609701,1731027049411,-2735.31,0.00027397,2]
[341609702,1731027049420,-1926.01,0.00027397,2]
[341609703,1731027049430,-500.0,0.00027397,2]
[341609704,1731027049439,-500.0,0.00027397,2]
[341609705,1731027049449,-1478.34,0.00027397,2]
[341609706,1731027049459,-500.0,0.00027397,2]
[341609707,1731027049468,-500.0,0.00027397,2]
[341609708,1731027049478,-861.92,0.00027397,2]
[341609709,1731027049487,-500.0,0.00027397,2]
[341609710,1731027049497,-667.54,0.00027397,2]
[341609711,1731027049507,-500.0,0.00027397,2]
[341609712,1731027049516,-500.0,0.00027397,2]
[341609713,1731027049526,-500.0,0.00027397,2]
[341609714,1731027049535,-732.58,0.00027397,2]
[341609715,1731027049545,-500.0,0.00027397,2]
[341609716,1731027049554,-500.0,0.00027397,2]
[341609717,1731027049564,-534.2,0.00027397,2]
[341609718,1731027049574,-500.0,0.00027397,2]
[341609719,1731027049583,-627.17,0.00027397,2]
[341609720,1731027049592,-500.0,0.00027397,2]
[341609721,1731027049601,-523.58,0.00027397,2]
[341609722,1731027049611,-500.0,0.00027397,2]
[341609723,1731027049620,-803.94,0.00027397,2]
[341609724,1731027049629,-500.0,0.00027397,2]
[341609725,1731027049638,-517.61,0.00027397,2]
[341609726,1731027049648,-761.36,0.00027397,2]
[341609727,1731027049661,-1343.76,0.00027397,2]
[341609728,1731027049670,-829.66,0.00027397,2]
[341609729,1731027049679,-552.96,0.00027397,2]
[341609730,1731027049688,-500.0,0.00027397,2]
[341609731,1731027049698,-1182.3,0.00027397,2]
[341609732,1731027049708,-500.0,0.00027397,2]
[341609733,1731027049717,-625.96,0.00027397,2]
[341609734,1731027049726,-812.43,0.00027397,2]
[341609735,1731027049737,-500.0,0.00027397,2]
[341609736,1731027049747,-811.79,0.00027397,2]
[341609737,1731027049756,-500.0,0.00027397,2]
[341609738,1731027049765,-500.0,0.00027397,2]
[341609739,1731027049774,-5850.41,0.00027397,2]
[341609740,1731027049783,-619.2,0.00027397,2]
[341609741,1731027049794,-1000.0,0.00027397,2]
[341609742,1731027049805,-1607.84,0.00027397,2]
[341609743,1731027049817,-623.24,0.00027397,2]
[341609744,1731027049827,-500.0,0.00027397,2]
[341609745,1731027049835,-511.46,0.00027397,2]
[341609746,1731027049844,-1147.35,0.00027397,2]
[341609747,1731027049853,-511.97,0.00027397,2]
[341609748,1731027049862,-500.0,0.00027397,2]
[341609749,1731027049872,-500.0,0.00027397,2]
[341609750,1731027049881,-500.0,0.00027397,2]
[341609751,1731027049890,-500.0,0.00027397,2]
[341609752,1731027049900,-3706.0,0.00027397,2]
[341609753,1731027049909,-772.12,0.00027397,2]
[341609754,1731027049919,-1032.78,0.00027397,2]
[341609755,1731027049930,-625.9,0.00027397,2]
[341609756,1731027049938,-500.0,0.00027397,2]
[341609757,1731027049947,-500.0,0.00027397,2]
[341609758,1731027049957,-500.0,0.00027397,2]
[341609759,1731027049966,-500.0,0.00027397,2]
[341609760,1731027049976,-1832.91,0.00027397,2]
[341609761,1731027049987,-2031.75,0.00027397,2]
[341609762,1731027049997,-500.0,0.00027397,2]
[341609763,1731027050007,-500.0,0.00027397,2]
[341609764,1731027050016,-500.0,0.00027397,2]
[341609765,1731027050025,-500.0,0.00027397,2]
[341609766,1731027050034,-500.0,0.00027397,2]
[341609767,1731027050043,-1259.06,0.00027397,2]
[341609768,1731027050052,-500.0,0.00027397,2]
[341609769,1731027050063,-769.95,0.00027397,2]
[341609770,1731027050072,-500.0,0.00027397,2]
[341609771,1731027050081,-501.13,0.00027397,2]
[341609772,1731027050090,-679.59,0.00027397,2]
[341609773,1731027050099,-675.14,0.00027397,2]
[341609774,1731027050109,-300.0,0.00027397,2]
[341609775,1731027050118,-500.0,0.00027397,2]
[341609776,1731027050127,-1779.54,0.00027397,2]
[341609777,1731027050136,-500.0,0.00027397,2]
[341609778,1731027050146,-1135.26,0.00027397,2]
[341609779,1731027050157,-593.67,0.00027397,2]
[341609780,1731027050167,-500.0,0.00027397,2]
[341609781,1731027050178,-709.94,0.00027397,2]
[341609782,1731027050188,-500.0,0.00027397,2]
[341609783,1731027050198,-500.0,0.00027397,2]
[341609784,1731027050208,-500.0,0.00027397,2]
[341609785,1731027050217,-500.0,0.00027397,2]
[341609786,1731027050225,-500.0,0.00027397,2]
[341609787,1731027050235,-1218.99,0.00027397,2]
[341609788,1731027050244,-500.0,0.00027397,2]
[341609789,1731027050253,-546.9,0.00027397,2]
[341609790,1731027050262,-681.64,0.00027397,2]
[341609791,1731027050271,-500.0,0.00027397,2]
[341609792,1731027050279,-1268.95,0.00027397,2]
[341609793,1731027050289,-500.0,0.00027397,2]
[341609794,1731027050299,-1989.86,0.00027397,2]
[341609795,1731027050308,-522.06957127,0.00027397,2]
[341609796,1731027050323,-500.0,0.00027397,2]
[341609797,1731027050332,-500.0,0.00027397,2]
[341609798,1731027050341,-558.93,0.00027397,2]
[341609799,1731027050350,-500.0,0.00027397,2]